[Event "Late-Titled-Tuesday-Blitz-October-10-2023"]
[Site "Chess.com"]
[Date "2023.10.10"]
[Round "11"]
[White "WDCH"]
[Black "Alphafischer2019"]
[Result "0-1"]
[WhiteElo "2707"]
[BlackElo "2590"]
[TimeControl "180+1"]
[EndTime "15:57:08 PDT"]
[Termination "Alphafischer2019 won by checkmate"]

1. Nc3 {[%clk 0:03:00.9]} 1... c5 {[%clk 0:02:56]} 2. e4 {[%clk 0:03:01.8]} 2...
Nc6 {[%clk 0:02:56.1]} 3. Nf3 {[%clk 0:03:01.9]} 3... g6 {[%clk 0:02:55.8]} 4.
Bc4 {[%clk 0:03:02.5]} 4... Bg7 {[%clk 0:02:55.8]} 5. O-O {[%clk 0:03:03.4]}
5... e6 {[%clk 0:02:56.2]} 6. d3 {[%clk 0:03:04.3]} 6... Nge7 {[%clk 0:02:56.3]}
7. Bd2 {[%clk 0:03:05]} 7... h6 {[%clk 0:02:54.5]} 8. Bb3 {[%clk 0:03:02.6]}
8... d5 {[%clk 0:02:54.9]} 9. Qc1 {[%clk 0:03:01.1]} 9... g5 {[%clk 0:02:39.5]}
10. exd5 {[%clk 0:03:00.3]} 10... exd5 {[%clk 0:02:39.2]} 11. Re1 {[%clk
0:02:59.8]} 11... O-O {[%clk 0:02:38.7]} 12. Ne2 {[%clk 0:02:54.5]} 12... Bg4
{[%clk 0:02:34]} 13. Ng3 {[%clk 0:02:35.1]} 13... Bxf3 {[%clk 0:02:32.9]} 14.
gxf3 {[%clk 0:02:36]} 14... Nd4 {[%clk 0:02:32.9]} 15. Kg2 {[%clk 0:02:36.4]}
15... Ng6 {[%clk 0:02:32.8]} 16. f4 {[%clk 0:02:30.3]} 16... Nh4+ {[%clk
0:02:25.8]} 17. Kf1 {[%clk 0:02:25.5]} 17... Qd7 {[%clk 0:02:26]} 18. f5 {[%clk
0:02:18.5]} 18... Ndxf5 {[%clk 0:02:19]} 19. Nxf5 {[%clk 0:02:16.5]} 19... Qxf5
{[%clk 0:02:18.5]} 20. Re3 {[%clk 0:02:16.8]} 20... Bd4 {[%clk 0:02:16.6]} 21.
c3 {[%clk 0:01:33.2]} 21... Bxe3 {[%clk 0:02:15]} 22. Bxe3 {[%clk 0:01:33.6]}
22... Qxd3+ {[%clk 0:02:08.6]} 23. Kg1 {[%clk 0:01:33.2]} 23... Qf5 {[%clk
0:02:05]} 24. Qd1 {[%clk 0:01:29.9]} 24... Qh3 {[%clk 0:02:00]} 25. Kh1 {[%clk
0:01:22.6]} 25... Qg2# {[%clk 0:01:58.7]} 0-1

[Event "Late-Titled-Tuesday-Blitz-October-10-2023"]
[Site "Chess.com"]
[Date "2023.10.10"]
[Round "11"]
[White "Binary010"]
[Black "Oleksandr_Bortnyk"]
[Result "0-1"]
[WhiteElo "2833"]
[BlackElo "3034"]
[TimeControl "180+1"]
[EndTime "15:57:25 PDT"]
[Termination "Oleksandr_Bortnyk won by resignation"]

1. e4 {[%clk 0:03:00.9]} 1... Nf6 {[%clk 0:02:57.9]} 2. e5 {[%clk 0:03:01.2]}
2... Nd5 {[%clk 0:02:58]} 3. d4 {[%clk 0:03:01.5]} 3... d6 {[%clk 0:02:58.2]} 4.
c4 {[%clk 0:03:01.8]} 4... Nb6 {[%clk 0:02:58.4]} 5. exd6 {[%clk 0:03:02.2]}
5... exd6 {[%clk 0:02:59.3]} 6. Nc3 {[%clk 0:03:01.9]} 6... Be7 {[%clk 0:03:00]}
7. Bd3 {[%clk 0:03:01.2]} 7... O-O {[%clk 0:02:59.6]} 8. Nge2 {[%clk 0:03:01.3]}
8... c6 {[%clk 0:03:00.3]} 9. O-O {[%clk 0:02:59.5]} 9... Na6 {[%clk 0:03:00.7]}
10. a3 {[%clk 0:02:58.6]} 10... d5 {[%clk 0:02:59.7]} 11. c5 {[%clk 0:02:56.9]}
11... Nd7 {[%clk 0:03:00.1]} 12. b4 {[%clk 0:02:48.4]} 12... Nc7 {[%clk
0:02:58.7]} 13. Bf4 {[%clk 0:02:36.4]} 13... Ne6 {[%clk 0:02:58.5]} 14. Bg3
{[%clk 0:02:36.6]} 14... Bf6 {[%clk 0:02:58]} 15. Bc2 {[%clk 0:02:37]} 15... a6
{[%clk 0:02:58]} 16. Qd3 {[%clk 0:02:31.2]} 16... g6 {[%clk 0:02:58.2]} 17. a4
{[%clk 0:02:31.1]} 17... Ng7 {[%clk 0:02:57.2]} 18. Bd6 {[%clk 0:02:25.2]} 18...
Re8 {[%clk 0:02:57.5]} 19. Ng3 {[%clk 0:02:25.2]} 19... h5 {[%clk 0:02:57.1]}
20. Qd2 {[%clk 0:01:56.8]} 20... h4 {[%clk 0:02:50.8]} 21. Nge2 {[%clk
0:01:56.7]} 21... h3 {[%clk 0:02:51.5]} 22. g3 {[%clk 0:01:55.9]} 22... Nf8
{[%clk 0:02:48]} 23. Rfe1 {[%clk 0:01:23.6]} 23... Nfe6 {[%clk 0:02:40.4]} 24.
b5 {[%clk 0:01:18.7]} 24... Ng5 {[%clk 0:02:27.2]} 25. Kh1 {[%clk 0:00:57.5]}
25... Nf3 {[%clk 0:02:24.7]} 26. Qd3 {[%clk 0:00:57.9]} 26... Nxe1 {[%clk
0:02:21.7]} 27. Rxe1 {[%clk 0:00:58.8]} 27... axb5 {[%clk 0:02:21.5]} 28. axb5
{[%clk 0:00:58.4]} 28... Bf5 {[%clk 0:02:21]} 29. Qd1 {[%clk 0:00:55.9]} 29...
Bxc2 {[%clk 0:02:21.9]} 30. Qxc2 {[%clk 0:00:56.3]} 30... Nf5 {[%clk 0:02:22.8]}
0-1

[Event "Late-Titled-Tuesday-Blitz-October-10-2023"]
[Site "Chess.com"]
[Date "2023.10.10"]
[Round "11"]
[White "Grossboss19"]
[Black "martinez_95"]
[Result "0-1"]
[WhiteElo "2459"]
[BlackElo "2243"]
[TimeControl "180+1"]
[EndTime "15:58:07 PDT"]
[Termination "martinez_95 won by resignation"]

1. e4 {[%clk 0:02:56.7]} 1... c5 {[%clk 0:02:58.6]} 2. Nf3 {[%clk 0:02:53.5]}
2... d6 {[%clk 0:02:58.9]} 3. d4 {[%clk 0:02:51.9]} 3... cxd4 {[%clk 0:02:59.8]}
4. Nxd4 {[%clk 0:02:52.7]} 4... Nf6 {[%clk 0:03:00.4]} 5. Nc3 {[%clk 0:02:51.3]}
5... a6 {[%clk 0:03:00.8]} 6. Be3 {[%clk 0:02:46.8]} 6... e5 {[%clk 0:03:00]} 7.
Nb3 {[%clk 0:02:43.9]} 7... Be6 {[%clk 0:02:59.2]} 8. f3 {[%clk 0:02:40]} 8...
Nbd7 {[%clk 0:02:58.9]} 9. Be2 {[%clk 0:02:37.8]} 9... Rc8 {[%clk 0:02:56.7]}
10. Qd2 {[%clk 0:02:33.2]} 10... Nb6 {[%clk 0:02:56.5]} 11. Na5 {[%clk
0:02:22.2]} 11... Qc7 {[%clk 0:02:47.4]} 12. O-O {[%clk 0:02:18.7]} 12... Be7
{[%clk 0:02:44.8]} 13. Kh1 {[%clk 0:02:09.2]} 13... O-O {[%clk 0:02:44.7]} 14.
g4 {[%clk 0:01:43.9]} 14... Rfd8 {[%clk 0:02:36.9]} 15. Rad1 {[%clk 0:01:41.1]}
15... d5 {[%clk 0:02:33.9]} 16. exd5 {[%clk 0:01:30.5]} 16... Nbxd5 {[%clk
0:02:23.2]} 17. Nxd5 {[%clk 0:01:29.5]} 17... Rxd5 {[%clk 0:02:18.7]} 18. Qe1
{[%clk 0:01:23.4]} 18... Qxa5 {[%clk 0:02:09.2]} 19. Rxd5 {[%clk 0:01:19.9]}
19... Qxe1 {[%clk 0:02:04.3]} 20. Rxe1 {[%clk 0:01:18.3]} 20... Nxd5 {[%clk
0:02:03.8]} 21. Bd2 {[%clk 0:01:16.9]} 21... Rxc2 {[%clk 0:02:02.1]} 22. Rd1
{[%clk 0:01:11.5]} 22... h6 {[%clk 0:01:48.7]} 23. Bd3 {[%clk 0:01:10.5]} 23...
Rxb2 {[%clk 0:01:45.3]} 24. Be4 {[%clk 0:01:09.4]} 24... Nf6 {[%clk 0:01:33.5]}
25. Bc3 {[%clk 0:01:04.6]} 25... Nxe4 {[%clk 0:01:32.2]} 26. fxe4 {[%clk
0:01:04.6]} 26... Rxa2 {[%clk 0:01:24.8]} 0-1

[Event "Late-Titled-Tuesday-Blitz-October-10-2023"]
[Site "Chess.com"]
[Date "2023.10.10"]
[Round "11"]
[White "Schwindle"]
[Black "miraitrunks"]
[Result "1-0"]
[WhiteElo "2407"]
[BlackElo "2247"]
[TimeControl "180+1"]
[EndTime "15:58:34 PDT"]
[Termination "Schwindle won by resignation"]

1. e4 {[%clk 0:03:00.9]} 1... c5 {[%clk 0:02:28.2]} 2. Nf3 {[%clk 0:02:58.7]}
2... Nc6 {[%clk 0:02:28.7]} 3. d4 {[%clk 0:02:58.6]} 3... cxd4 {[%clk
0:02:29.2]} 4. Nxd4 {[%clk 0:02:59.5]} 4... e5 {[%clk 0:02:29.6]} 5. Nb5 {[%clk
0:02:57.3]} 5... a6 {[%clk 0:02:29.1]} 6. Nd6+ {[%clk 0:02:54.4]} 6... Bxd6
{[%clk 0:02:17.7]} 7. Qxd6 {[%clk 0:02:55.3]} 7... Qf6 {[%clk 0:02:18.3]} 8. Qd1
{[%clk 0:02:46.4]} 8... Nge7 {[%clk 0:01:42.1]} 9. Be2 {[%clk 0:02:42.8]} 9...
O-O {[%clk 0:01:42.3]} 10. O-O {[%clk 0:02:42.9]} 10... Rd8 {[%clk 0:01:42.5]}
11. Nc3 {[%clk 0:02:19.8]} 11... b5 {[%clk 0:01:24.9]} 12. Nd5 {[%clk
0:02:09.2]} 12... Nxd5 {[%clk 0:01:24.3]} 13. exd5 {[%clk 0:02:10.1]} 13... Nd4
{[%clk 0:01:23.2]} 14. Bd3 {[%clk 0:02:02]} 14... d6 {[%clk 0:01:22.6]} 15. Qh5
{[%clk 0:01:49.1]} 15... g6 {[%clk 0:01:09.9]} 16. Qh6 {[%clk 0:01:45.9]} 16...
Nf5 {[%clk 0:01:05.1]} 17. Bxf5 {[%clk 0:01:44]} 17... Bxf5 {[%clk 0:01:06]} 18.
Bg5 {[%clk 0:01:42.7]} 18... Qg7 {[%clk 0:01:03.6]} 19. Qxg7+ {[%clk 0:01:42.8]}
19... Kxg7 {[%clk 0:01:04]} 20. Bxd8 {[%clk 0:01:43.4]} 20... Rxd8 {[%clk
0:01:03.2]} 21. Rac1 {[%clk 0:01:29.7]} 21... Rc8 {[%clk 0:01:02.1]} 22. Rfd1
{[%clk 0:01:23.7]} 22... Rc5 {[%clk 0:01:02]} 23. Rd2 {[%clk 0:01:19.7]} 23...
Be4 {[%clk 0:00:58.6]} 24. f3 {[%clk 0:01:15.8]} 24... Bxd5 {[%clk 0:00:58.3]}
25. b4 {[%clk 0:01:16.1]} 1-0

[Event "Late-Titled-Tuesday-Blitz-October-10-2023"]
[Site "Chess.com"]
[Date "2023.10.10"]
[Round "11"]
[White "Sofiia_Hryzlova"]
[Black "HajiyevKanan"]
[Result "1-0"]
[WhiteElo "2427"]
[BlackElo "2540"]
[TimeControl "180+1"]
[EndTime "15:58:36 PDT"]
[Termination "Sofiia_Hryzlova won by resignation"]

1. c3 {[%clk 0:03:00.1]} 1... c6 {[%clk 0:02:55.9]} 2. Qa4 {[%clk 0:02:59.6]}
2... d5 {[%clk 0:02:56.8]} 3. Qh4 {[%clk 0:02:58.7]} 3... Nf6 {[%clk 0:02:54.5]}
4. f3 {[%clk 0:02:58.7]} 4... Bf5 {[%clk 0:02:54.6]} 5. Kd1 {[%clk 0:02:58.4]}
5... e5 {[%clk 0:02:52.6]} 6. Qe1 {[%clk 0:02:59]} 6... Bc5 {[%clk 0:02:52.4]}
7. e3 {[%clk 0:02:55.7]} 7... O-O {[%clk 0:02:52.3]} 8. d4 {[%clk 0:02:55.9]}
8... exd4 {[%clk 0:02:52.5]} 9. exd4 {[%clk 0:02:55.9]} 9... Bd6 {[%clk
0:02:52.8]} 10. g4 {[%clk 0:02:52.8]} 10... Re8 {[%clk 0:02:52.7]} 11. Qf2
{[%clk 0:02:52.5]} 11... Nxg4 {[%clk 0:02:30.2]} 12. fxg4 {[%clk 0:02:48.8]}
12... Bxg4+ {[%clk 0:02:31.1]} 13. Be2 {[%clk 0:02:45.9]} 13... Qd7 {[%clk
0:01:50.9]} 14. h3 {[%clk 0:02:23.7]} 14... Bf5 {[%clk 0:01:45.8]} 15. Bf4
{[%clk 0:02:17.7]} 15... Bxf4 {[%clk 0:01:38]} 16. Qxf4 {[%clk 0:02:16.4]} 16...
Re4 {[%clk 0:01:38]} 17. Qf2 {[%clk 0:02:15.4]} 17... g5 {[%clk 0:01:04.8]} 18.
Nd2 {[%clk 0:02:12.6]} 18... Rf4 {[%clk 0:01:04.8]} 19. Qg3 {[%clk 0:02:10.9]}
19... h6 {[%clk 0:00:55.5]} 20. Ngf3 {[%clk 0:02:10.7]} 20... Qd6 {[%clk
0:00:55.6]} 21. h4 {[%clk 0:02:02.3]} 21... g4 {[%clk 0:00:52.3]} 22. Ne5 {[%clk
0:02:01.2]} 22... Re4 {[%clk 0:00:42.4]} 23. Nxe4 {[%clk 0:02:00]} 23... Bxe4
{[%clk 0:00:40.2]} 24. Qxg4+ {[%clk 0:01:58.1]} 24... Kf8 {[%clk 0:00:39.8]} 25.
Rf1 {[%clk 0:01:56.9]} 25... f6 {[%clk 0:00:36.2]} 26. Qc8+ {[%clk 0:01:53.9]}
26... Ke7 {[%clk 0:00:33.6]} 27. Qxb7+ {[%clk 0:01:54.1]} 27... Nd7 {[%clk
0:00:34.2]} 28. Nxd7 {[%clk 0:01:43.8]} 28... Rg8 {[%clk 0:00:34.5]} 29. Nxf6+
{[%clk 0:01:42.8]} 29... Ke6 {[%clk 0:00:29.1]} 30. Nxg8 {[%clk 0:01:41.5]} 1-0

[Event "Late-Titled-Tuesday-Blitz-October-10-2023"]
[Site "Chess.com"]
[Date "2023.10.10"]
[Round "11"]
[White "Dacean99"]
[Black "emeli_chess"]
[Result "0-1"]
[WhiteElo "2555"]
[BlackElo "2407"]
[TimeControl "180+1"]
[EndTime "15:58:43 PDT"]
[Termination "emeli_chess won by checkmate"]

1. d4 {[%clk 0:02:54.9]} 1... Nf6 {[%clk 0:02:59.4]} 2. Nf3 {[%clk 0:02:54.6]}
2... d5 {[%clk 0:02:59.2]} 3. c4 {[%clk 0:02:54.9]} 3... e6 {[%clk 0:02:58.8]}
4. cxd5 {[%clk 0:02:55.8]} 4... exd5 {[%clk 0:02:58.7]} 5. Nc3 {[%clk
0:02:56.7]} 5... Bb4 {[%clk 0:02:57.9]} 6. Bg5 {[%clk 0:02:57.6]} 6... h6 {[%clk
0:02:57.7]} 7. Bxf6 {[%clk 0:02:56.4]} 7... Qxf6 {[%clk 0:02:57.3]} 8. e3 {[%clk
0:02:57.3]} 8... O-O {[%clk 0:02:56.7]} 9. Bd3 {[%clk 0:02:57.1]} 9... c5 {[%clk
0:02:56.5]} 10. O-O {[%clk 0:02:57.5]} 10... Bxc3 {[%clk 0:02:56.8]} 11. bxc3
{[%clk 0:02:56.8]} 11... c4 {[%clk 0:02:57.2]} 12. Bc2 {[%clk 0:02:56.9]} 12...
Nc6 {[%clk 0:02:33.1]} 13. e4 {[%clk 0:02:54.5]} 13... dxe4 {[%clk 0:02:31.5]}
14. Bxe4 {[%clk 0:02:55.4]} 14... Bf5 {[%clk 0:02:25.4]} 15. Re1 {[%clk
0:02:51]} 15... Bxe4 {[%clk 0:02:24.9]} 16. Rxe4 {[%clk 0:02:51.9]} 16... Rfe8
{[%clk 0:02:23.9]} 17. Qe2 {[%clk 0:02:50]} 17... Rxe4 {[%clk 0:02:18.4]} 18.
Qxe4 {[%clk 0:02:50.9]} 18... Rd8 {[%clk 0:02:07.6]} 19. Re1 {[%clk 0:02:49.5]}
19... Qd6 {[%clk 0:02:05.4]} 20. h3 {[%clk 0:02:40.5]} 20... b5 {[%clk 0:02:03]}
21. Nh4 {[%clk 0:02:32.9]} 21... Qd5 {[%clk 0:01:54.7]} 22. Qg4 {[%clk
0:02:23.5]} 22... Qg5 {[%clk 0:01:51.6]} 23. Qe4 {[%clk 0:02:22.4]} 23... Qd5
{[%clk 0:01:49.9]} 24. Qf4 {[%clk 0:02:16.4]} 24... Qg5 {[%clk 0:01:36.8]} 25.
Qc7 {[%clk 0:02:08.3]} 25... Nxd4 {[%clk 0:01:26.2]} 26. cxd4 {[%clk 0:01:57.4]}
26... Qxh4 {[%clk 0:01:25.8]} 27. Qxa7 {[%clk 0:01:54]} 27... Qxd4 {[%clk
0:01:22.7]} 28. Re8+ {[%clk 0:01:44.5]} 28... Kh7 {[%clk 0:01:21.8]} 29. Qxf7
{[%clk 0:01:45.1]} 29... Rxe8 {[%clk 0:01:12.3]} 30. Qxe8 {[%clk 0:01:46]} 30...
c3 {[%clk 0:01:08.6]} 31. Kh2 {[%clk 0:01:39.3]} 31... Qf4+ {[%clk 0:01:03.6]}
32. Kg1 {[%clk 0:01:37.8]} 32... c2 {[%clk 0:01:00.6]} 33. Qxb5 {[%clk
0:01:37.3]} 33... c1=Q+ {[%clk 0:01:00]} 34. Qf1 {[%clk 0:01:38.2]} 34... Qxf1+
{[%clk 0:00:58.4]} 35. Kxf1 {[%clk 0:01:39.1]} 35... Qc4+ {[%clk 0:00:58]} 36.
Ke1 {[%clk 0:01:39.1]} 36... Qxa2 {[%clk 0:00:57.8]} 37. h4 {[%clk 0:01:38.5]}
37... g5 {[%clk 0:00:57.7]} 38. g4 {[%clk 0:01:39.4]} 38... gxh4 {[%clk
0:00:57.4]} 39. Kf1 {[%clk 0:01:40]} 39... Kg6 {[%clk 0:00:57.3]} 40. Kg2 {[%clk
0:01:40.9]} 40... Kg5 {[%clk 0:00:57.5]} 41. Kh3 {[%clk 0:01:41.3]} 41... Qb3+
{[%clk 0:00:56.7]} 42. f3 {[%clk 0:01:39.2]} 42... Qxf3+ {[%clk 0:00:55.2]} 43.
Kh2 {[%clk 0:01:40.1]} 43... Qg3+ {[%clk 0:00:53.9]} 44. Kh1 {[%clk 0:01:40.3]}
44... Kf4 {[%clk 0:00:53.8]} 45. g5 {[%clk 0:01:39.9]} 45... h3 {[%clk 0:00:54]}
46. gxh6 {[%clk 0:01:40.8]} 46... Qg2# {[%clk 0:00:54.1]} 0-1

[Event "Late-Titled-Tuesday-Blitz-October-10-2023"]
[Site "Chess.com"]
[Date "2023.10.10"]
[Round "11"]
[White "canary2016"]
[Black "Nekoo04"]
[Result "0-1"]
[WhiteElo "2176"]
[BlackElo "2269"]
[TimeControl "180+1"]
[EndTime "15:58:51 PDT"]
[Termination "Nekoo04 won by resignation"]

1. e4 {[%clk 0:02:54.9]} 1... c5 {[%clk 0:02:54.4]} 2. d4 {[%clk 0:02:54.3]}
2... cxd4 {[%clk 0:02:54]} 3. c3 {[%clk 0:02:55]} 3... dxc3 {[%clk 0:02:53.5]}
4. Nxc3 {[%clk 0:02:55.9]} 4... d6 {[%clk 0:02:54.2]} 5. Nf3 {[%clk 0:02:55.3]}
5... e6 {[%clk 0:02:54.5]} 6. Bb5+ {[%clk 0:02:54.8]} 6... Bd7 {[%clk
0:02:54.2]} 7. O-O {[%clk 0:02:54.9]} 7... Nf6 {[%clk 0:02:50.3]} 8. Bf4 {[%clk
0:02:53.1]} 8... e5 {[%clk 0:02:49.2]} 9. Bg3 {[%clk 0:02:52.2]} 9... Nc6 {[%clk
0:02:33.4]} 10. Rc1 {[%clk 0:02:51.3]} 10... Be7 {[%clk 0:02:31.9]} 11. Re1
{[%clk 0:02:50.3]} 11... O-O {[%clk 0:02:31.8]} 12. Nd5 {[%clk 0:02:49.8]} 12...
a6 {[%clk 0:02:20.2]} 13. Ba4 {[%clk 0:02:35]} 13... Nxd5 {[%clk 0:02:09.9]} 14.
exd5 {[%clk 0:02:33.5]} 14... Nb8 {[%clk 0:02:08.6]} 15. Bc2 {[%clk 0:02:28.7]}
15... Bg4 {[%clk 0:02:04.7]} 16. Qd3 {[%clk 0:02:26.5]} 16... f5 {[%clk
0:02:02.6]} 17. Nd2 {[%clk 0:02:23.7]} 17... Nd7 {[%clk 0:01:58.8]} 18. h3
{[%clk 0:02:21.8]} 18... Bh5 {[%clk 0:01:57.8]} 19. Nf1 {[%clk 0:02:01.4]} 19...
Rc8 {[%clk 0:01:46]} 20. Bh2 {[%clk 0:01:59]} 20... Bg6 {[%clk 0:01:39.3]} 21.
Qd2 {[%clk 0:01:56.5]} 21... Bg5 {[%clk 0:01:37.6]} 22. f4 {[%clk 0:01:54.5]}
22... Bf6 {[%clk 0:01:30.5]} 23. Qe2 {[%clk 0:01:49.6]} 23... e4 {[%clk
0:01:29.4]} 24. Ne3 {[%clk 0:01:43]} 24... Bxb2 {[%clk 0:01:25.1]} 25. Rb1
{[%clk 0:01:40.9]} 25... Bd4 {[%clk 0:01:22.1]} 26. Rxb7 {[%clk 0:01:37.9]}
26... Bxe3+ {[%clk 0:01:21.5]} 27. Qxe3 {[%clk 0:01:36.4]} 27... Rxc2 {[%clk
0:01:22.1]} 28. Qa7 {[%clk 0:01:34.2]} 28... Be8 {[%clk 0:01:04.7]} 29. Reb1
{[%clk 0:01:30.8]} 29... Qa5 {[%clk 0:00:58.5]} 30. Rxd7 {[%clk 0:01:23.3]}
30... Bxd7 {[%clk 0:00:57.8]} 31. Qxd7 {[%clk 0:01:23.9]} 31... Qxa2 {[%clk
0:00:56.2]} 32. Qe6+ {[%clk 0:01:20.7]} 32... Kh8 {[%clk 0:00:55.2]} 0-1

[Event "Late-Titled-Tuesday-Blitz-October-10-2023"]
[Site "Chess.com"]
[Date "2023.10.10"]
[Round "11"]
[White "talaicito"]
[Black "McCarthyStone"]
[Result "1-0"]
[WhiteElo "2236"]
[BlackElo "2410"]
[TimeControl "180+1"]
[EndTime "15:59:32 PDT"]
[Termination "talaicito won on time"]

1. d4 {[%clk 0:03:00.9]} 1... d5 {[%clk 0:02:55.7]} 2. Nc3 {[%clk 0:03:01]} 2...
c6 {[%clk 0:02:51.4]} 3. Bf4 {[%clk 0:03:01.1]} 3... Nf6 {[%clk 0:02:47.1]} 4.
e3 {[%clk 0:03:00.7]} 4... b5 {[%clk 0:02:44]} 5. a3 {[%clk 0:02:55.5]} 5... g6
{[%clk 0:02:44.3]} 6. Nf3 {[%clk 0:02:54.5]} 6... Bg7 {[%clk 0:02:44.8]} 7. Ne5
{[%clk 0:02:54.4]} 7... O-O {[%clk 0:02:43.2]} 8. Bd3 {[%clk 0:02:50.9]} 8...
Qb6 {[%clk 0:02:43.4]} 9. h4 {[%clk 0:02:45.4]} 9... h5 {[%clk 0:02:33.9]} 10.
f3 {[%clk 0:02:28.9]} 10... Nbd7 {[%clk 0:02:33.4]} 11. Qd2 {[%clk 0:02:15.7]}
11... b4 {[%clk 0:02:28.8]} 12. Na4 {[%clk 0:02:07.5]} 12... Qb7 {[%clk
0:02:23.3]} 13. Qxb4 {[%clk 0:02:01.6]} 13... Nxe5 {[%clk 0:02:21]} 14. Bxe5
{[%clk 0:01:52.3]} 14... Nd7 {[%clk 0:02:12.6]} 15. Bxg7 {[%clk 0:01:43.1]}
15... Kxg7 {[%clk 0:02:12.5]} 16. Qxe7 {[%clk 0:01:40.6]} 16... Qc7 {[%clk
0:01:59.8]} 17. O-O-O {[%clk 0:01:33.7]} 17... Rb8 {[%clk 0:01:51.3]} 18. g4
{[%clk 0:01:22.5]} 18... Qa5 {[%clk 0:01:33]} 19. b3 {[%clk 0:01:18.3]} 19...
Nf6 {[%clk 0:01:08.9]} 20. gxh5 {[%clk 0:01:11.4]} 20... Nxh5 {[%clk 0:01:06.8]}
21. Qe5+ {[%clk 0:01:09.1]} 21... Nf6 {[%clk 0:01:01.9]} 22. Qxb8 {[%clk
0:01:08.5]} 22... Bf5 {[%clk 0:00:58.6]} 23. Qb4 {[%clk 0:01:06.1]} 23... Qc7
{[%clk 0:00:54.9]} 24. Bxf5 {[%clk 0:01:04.8]} 24... gxf5 {[%clk 0:00:55.8]} 25.
Rdg1+ {[%clk 0:01:04.4]} 25... Kh7 {[%clk 0:00:56.3]} 26. Qxf8 {[%clk
0:01:03.4]} 1-0

[Event "Late-Titled-Tuesday-Blitz-October-10-2023"]
[Site "Chess.com"]
[Date "2023.10.10"]
[Round "11"]
[White "howitzer14"]
[Black "giomar27"]
[Result "1-0"]
[WhiteElo "2972"]
[BlackElo "2305"]
[TimeControl "180+1"]
[EndTime "15:59:33 PDT"]
[Termination "howitzer14 won by checkmate"]

1. d4 {[%clk 0:03:00.9]} 1... Nf6 {[%clk 0:02:58.9]} 2. Nf3 {[%clk 0:03:01.8]}
2... d5 {[%clk 0:02:57.6]} 3. Bf4 {[%clk 0:03:02.2]} 3... c5 {[%clk 0:02:55.3]}
4. e3 {[%clk 0:02:59.4]} 4... Qb6 {[%clk 0:02:54.6]} 5. Nc3 {[%clk 0:02:37]}
5... a6 {[%clk 0:02:51.3]} 6. Na4 {[%clk 0:02:23.3]} 6... Qa5+ {[%clk
0:02:45.5]} 7. c3 {[%clk 0:02:23.5]} 7... cxd4 {[%clk 0:02:41.7]} 8. exd4 {[%clk
0:02:23.5]} 8... Nc6 {[%clk 0:02:36.2]} 9. Bd3 {[%clk 0:02:14.6]} 9... g6 {[%clk
0:02:36.3]} 10. h3 {[%clk 0:02:13.8]} 10... Bg7 {[%clk 0:02:36.1]} 11. O-O
{[%clk 0:02:14.3]} 11... O-O {[%clk 0:02:36]} 12. Re1 {[%clk 0:02:14.9]} 12...
Bf5 {[%clk 0:02:34.5]} 13. Bxf5 {[%clk 0:01:58.5]} 13... gxf5 {[%clk 0:02:34.5]}
14. Nc5 {[%clk 0:01:49.3]} 14... b5 {[%clk 0:02:15.2]} 15. Ne5 {[%clk
0:01:36.8]} 15... Nxe5 {[%clk 0:02:02]} 16. Bxe5 {[%clk 0:01:34.3]} 16... Qd8
{[%clk 0:01:47.7]} 17. Bxf6 {[%clk 0:01:04]} 17... Bxf6 {[%clk 0:01:47.5]} 18.
Qh5 {[%clk 0:01:04.6]} 18... e6 {[%clk 0:01:43.2]} 19. g4 {[%clk 0:01:05]} 19...
fxg4 {[%clk 0:01:23.3]} 20. hxg4 {[%clk 0:01:05.9]} 20... Be7 {[%clk 0:01:23.7]}
21. Re3 {[%clk 0:00:53]} 21... Bg5 {[%clk 0:01:09.9]} 22. Rh3 {[%clk 0:00:52.1]}
22... h6 {[%clk 0:01:10.2]} 23. Nd3 {[%clk 0:00:51.8]} 23... f5 {[%clk
0:01:02.3]} 24. Qg6+ {[%clk 0:00:36.3]} 24... Kh8 {[%clk 0:01:01.3]} 25. Rxh6+
{[%clk 0:00:37.2]} 25... Bxh6 {[%clk 0:01:01.2]} 26. Qxh6+ {[%clk 0:00:38.1]}
26... Kg8 {[%clk 0:01:01.8]} 27. Qg6+ {[%clk 0:00:38.5]} 27... Kh8 {[%clk
0:01:02.1]} 28. Kg2 {[%clk 0:00:38.9]} 28... Qh4 {[%clk 0:00:50.1]} 29. Rh1
{[%clk 0:00:39.2]} 29... Qxh1+ {[%clk 0:00:49.8]} 30. Kxh1 {[%clk 0:00:40.1]}
30... fxg4 {[%clk 0:00:49.2]} 31. Ne5 {[%clk 0:00:36.7]} 31... Ra7 {[%clk
0:00:48.3]} 32. Kg2 {[%clk 0:00:33.6]} 32... Rg7 {[%clk 0:00:47.2]} 33. Qh6+
{[%clk 0:00:33.4]} 33... Rh7 {[%clk 0:00:45.5]} 34. Qxf8# {[%clk 0:00:33.3]} 1-0

[Event "Late-Titled-Tuesday-Blitz-October-10-2023"]
[Site "Chess.com"]
[Date "2023.10.10"]
[Round "11"]
[White "MathiasWomacka"]
[Black "Kostukov_Alex"]
[Result "1-0"]
[WhiteElo "2533"]
[BlackElo "2391"]
[TimeControl "180+1"]
[EndTime "15:59:34 PDT"]
[Termination "MathiasWomacka won by resignation"]

1. e4 {[%clk 0:03:00.9]} 1... c5 {[%clk 0:02:58.1]} 2. Nf3 {[%clk 0:03:00.5]}
2... g6 {[%clk 0:02:58.3]} 3. d4 {[%clk 0:03:00.7]} 3... cxd4 {[%clk 0:02:57.9]}
4. Nxd4 {[%clk 0:03:01.6]} 4... Bg7 {[%clk 0:02:58.1]} 5. c4 {[%clk 0:03:01.5]}
5... Nc6 {[%clk 0:02:58.7]} 6. Be3 {[%clk 0:03:01.2]} 6... Nf6 {[%clk
0:02:58.8]} 7. Nc3 {[%clk 0:03:01.1]} 7... O-O {[%clk 0:02:58]} 8. Be2 {[%clk
0:03:00.5]} 8... Nxd4 {[%clk 0:02:58.1]} 9. Bxd4 {[%clk 0:02:59.4]} 9... Qa5
{[%clk 0:02:59]} 10. O-O {[%clk 0:02:57.6]} 10... d6 {[%clk 0:02:59.3]} 11. a3
{[%clk 0:02:43.7]} 11... Be6 {[%clk 0:02:58.6]} 12. b4 {[%clk 0:02:43.2]} 12...
Qd8 {[%clk 0:02:58.6]} 13. Rc1 {[%clk 0:02:24.6]} 13... a5 {[%clk 0:02:51.1]}
14. f4 {[%clk 0:02:14.6]} 14... axb4 {[%clk 0:02:49.7]} 15. axb4 {[%clk
0:02:15.5]} 15... Rc8 {[%clk 0:02:42.2]} 16. Nd5 {[%clk 0:02:03.6]} 16... Bxd5
{[%clk 0:02:28.5]} 17. exd5 {[%clk 0:02:00.5]} 17... Nd7 {[%clk 0:02:27.8]} 18.
Bxg7 {[%clk 0:01:57.6]} 18... Kxg7 {[%clk 0:02:28.7]} 19. Qd4+ {[%clk
0:01:57.1]} 19... Kg8 {[%clk 0:02:22.3]} 20. c5 {[%clk 0:01:56.9]} 20... Qc7
{[%clk 0:02:15.6]} 21. c6 {[%clk 0:01:53.1]} 21... bxc6 {[%clk 0:01:41]} 22.
dxc6 {[%clk 0:01:49.2]} 22... Qb6 {[%clk 0:01:34.3]} 23. Rfd1 {[%clk 0:01:34.3]}
23... Qxd4+ {[%clk 0:01:29.1]} 24. Rxd4 {[%clk 0:01:35.2]} 24... Nb6 {[%clk
0:01:28.5]} 25. c7 {[%clk 0:01:27.3]} 25... Ra8 {[%clk 0:01:25.2]} 26. Rc6
{[%clk 0:01:08.6]} 26... Nc8 {[%clk 0:01:20.9]} 27. b5 {[%clk 0:00:58]} 27...
Ra1+ {[%clk 0:01:19.3]} 28. Rd1 {[%clk 0:00:56.5]} 28... Ra2 {[%clk 0:01:19]}
29. Rb1 {[%clk 0:00:32]} 29... Na7 {[%clk 0:01:08.6]} 30. Ra6 {[%clk 0:00:25.5]}
30... Rxa6 {[%clk 0:01:00.5]} 31. bxa6 {[%clk 0:00:26.4]} 31... Rc8 {[%clk
0:00:59.7]} 32. Rb7 {[%clk 0:00:25.5]} 32... Nc6 {[%clk 0:00:58.7]} 33. Bb5
{[%clk 0:00:22.1]} 33... Nd4 {[%clk 0:00:55.2]} 34. Bd7 {[%clk 0:00:20.8]} 1-0